[Event "2026 European Womens Championship"]
[Site "Batumi, GE"]
[Date "2026.06.05"]
[Round "11"]
[White "Peycheva, Gergana"]
[Black "Hrebenshchykova, Yelyzaveta"]
[Result "1-0"]
[Board "28"]
[TimeControl "5400+30"]
[WhiteFideId "2916711"]
[BlackFideId "14159899"]
[WhiteElo "2186"]
[BlackElo "2309"]
[WhiteTitle "FM"]
[BlackTitle "WGM"]
[WhiteClock "0:01:11"]
[BlackClock "0:00:33"]
[Variant "Standard"]

1. g3 {[%clk 1:30:53]}  g6 {[%clk 1:26:15]} 2. Bg2 {[%clk 1:30:49]}  Bg7 {[%clk 1:26:42]} 3. e4 {[%clk 1:30:02]}  c5 {[%clk 1:13:52]}
4. Ne2 {[%clk 1:28:39]}  Nc6 {[%clk 1:14:18]} 5. c3 {[%clk 1:28:58]}  e5 {[%clk 1:12:22]} 6. f4 {[%clk 1:28:10]}  d6 {[%clk 1:03:02]}
7. O-O {[%clk 1:25:29]}  Nge7 {[%clk 1:02:34]} 8. d3 {[%clk 1:20:38]}  O-O {[%clk 0:54:53]} 9. Be3 {[%clk 1:17:42]}  f5 {[%clk 0:41:10]}
10. Nd2 {[%clk 1:15:24]}  b6 {[%clk 0:40:13]} 11. Nf3 {[%clk 1:11:17]}  Kh8 {[%clk 0:39:24]} 12. Qd2 {[%clk 1:06:47]}  Ba6 {[%clk 0:32:31]}
13. Rad1 {[%clk 0:59:21]}  Qd7 {[%clk 0:29:59]} 14. Rfe1 {[%clk 0:57:15]}  Rad8 {[%clk 0:30:24]} 15. exf5 {[%clk 0:51:32]}  gxf5 {[%clk 0:27:37]}
16. Ng5 {[%clk 0:48:48]}  Rde8 {[%clk 0:24:41]} 17. Qc2 {[%clk 0:46:24]}  Bb7 {[%clk 0:24:02]} 18. Bf2 {[%clk 0:36:11]}  h6 {[%clk 0:24:05]}
19. Nh3 {[%clk 0:31:38]}  Nd8 {[%clk 0:19:54]} 20. Bxb7 {[%clk 0:30:27]}  Qxb7 {[%clk 0:20:21]} 21. d4 {[%clk 0:27:37]}  cxd4 {[%clk 0:14:59]}
22. fxe5 {[%clk 0:27:29]}  dxe5 {[%clk 0:15:17]} 23. cxd4 {[%clk 0:27:51]}  Ndc6 {[%clk 0:13:04]} 24. Qb3 {[%clk 0:24:20]}  f4 {[%clk 0:09:49]}
25. gxf4 {[%clk 0:20:40]}  Nxd4 {[%clk 0:08:48]} 26. Nxd4 {[%clk 0:15:35]}  exd4 {[%clk 0:09:15]} 27. Qd3 {[%clk 0:13:17]}  Rd8 {[%clk 0:07:00]}
28. Bh4 {[%clk 0:11:12]}  Bf6 {[%clk 0:05:54]} 29. Re6 {[%clk 0:08:07]}  Rg8+ {[%clk 0:03:49]} 30. Bg3 {[%clk 0:06:46]}  Rdf8 {[%clk 0:02:44]}
31. f5 {[%clk 0:04:52]}  Qd5 {[%clk 0:02:34]} 32. Rf1 {[%clk 0:03:50]}  Rf7 {[%clk 0:00:53]} 33. b3 {[%clk 0:01:53]}  Kh7 {[%clk 0:00:48]}
34. Re4 {[%clk 0:00:41]}  Kh8 {[%clk 0:00:38]} 35. Re6 {[%clk 0:00:38]}  Kh7 {[%clk 0:00:10]} 36. Re4 {[%clk 0:00:42]}  Nc6 {[%clk 0:00:41]}
37. Nf4 {[%clk 0:00:35]}  Qxf5 {[%clk 0:01:07]} 38. Nd5 {[%clk 0:00:33]}  Ne5 {[%clk 0:00:33]} 39. Nxf6+ {[%clk 0:00:37]}  Rxf6 {[%clk 0:00:34]}
40. Rxf5 {[%clk 0:00:37]}  Nxd3 {[%clk 0:00:33]} 41. Rxf6 {[%clk 0:01:11]} 1-0

[Event "2026 European Womens Championship"]
[Site "Batumi, GE"]
[Date "2026.06.05"]
[Round "11"]
[White "Abdinova, Narmin"]
[Black "Pogorelskikh, Sofia"]
[Result "1/2-1/2"]
[Board "29"]
[TimeControl "5400+30"]
[WhiteFideId "13425340"]
[BlackFideId "44164548"]
[WhiteElo "2165"]
[BlackElo "2284"]
[WhiteTitle "WIM"]
[BlackTitle "WGM"]
[WhiteClock "0:00:34"]
[BlackClock "0:03:02"]
[Variant "Standard"]

1. c4 {[%clk 1:30:01]}  e5 {[%clk 1:30:50]} 2. g3 {[%clk 1:30:26]}  Nf6 {[%clk 1:31:03]} 3. Bg2 {[%clk 1:30:51]}  d5 {[%clk 1:31:14]}
4. cxd5 {[%clk 1:31:10]}  Nxd5 {[%clk 1:31:29]} 5. Nf3 {[%clk 1:31:23]}  Nc6 {[%clk 1:31:43]} 6. O-O {[%clk 1:31:45]}  Nb6 {[%clk 1:31:43]}
7. b3 {[%clk 1:31:57]}  Be6 {[%clk 1:30:56]} 8. Bb2 {[%clk 1:32:09]}  f6 {[%clk 1:30:35]} 9. Nc3 {[%clk 1:32:17]}  Qd7 {[%clk 1:30:26]}
10. Qc1 {[%clk 1:31:26]}  O-O-O {[%clk 1:28:17]} 11. Rd1 {[%clk 1:14:08]}  Be7 {[%clk 1:17:38]} 12. d4 {[%clk 1:14:22]}  Nxd4 {[%clk 1:15:37]}
13. Nxd4 {[%clk 1:14:31]}  exd4 {[%clk 1:15:55]} 14. Ne4 {[%clk 1:14:50]}  Qb5 {[%clk 1:13:32]} 15. Bxd4 {[%clk 1:08:36]}  Qxe2 {[%clk 1:07:44]}
16. Re1 {[%clk 1:02:28]}  Qh5 {[%clk 0:52:34]} 17. Bc5 {[%clk 0:27:29]}  Bxc5 {[%clk 0:51:21]} 18. Nxc5 {[%clk 0:27:56]}  Bd5 {[%clk 0:50:38]}
19. Re7 {[%clk 0:27:50]}  Na8 {[%clk 0:41:32]} 20. Ne6 {[%clk 0:16:38]}  Bxe6 {[%clk 0:25:50]} 21. Rxe6 {[%clk 0:17:04]}  Rhe8 {[%clk 0:24:37]}
22. Qe3 {[%clk 0:17:23]}  Rd1+ {[%clk 0:18:42]} 23. Rxd1 {[%clk 0:14:50]}  Qxd1+ {[%clk 0:19:05]} 24. Bf1 {[%clk 0:15:18]}  Rd8 {[%clk 0:18:49]}
25. Re8 {[%clk 0:14:20]}  Nb6 {[%clk 0:08:54]} 26. Qe6+ {[%clk 0:13:14]}  Kb8 {[%clk 0:07:19]} 27. Qe7 {[%clk 0:11:20]}  Rxe8 {[%clk 0:07:29]}
28. Qxe8+ {[%clk 0:11:47]}  Nc8 {[%clk 0:07:52]} 29. Qg8 {[%clk 0:10:27]}  Qd7 {[%clk 0:06:48]} 30. Bc4 {[%clk 0:10:09]}  c5 {[%clk 0:05:45]}
31. Be6 {[%clk 0:09:34]}  Qc6 {[%clk 0:05:44]} 32. h4 {[%clk 0:07:13]}  h5 {[%clk 0:04:01]} 33. a4 {[%clk 0:05:56]}  b6 {[%clk 0:03:17]}
34. Bc4 {[%clk 0:03:50]}  Qd7 {[%clk 0:02:43]} 35. Bb5 {[%clk 0:03:56]}  Qc7 {[%clk 0:02:21]} 36. Be2 {[%clk 0:02:59]}  Qe5 {[%clk 0:02:07]}
37. Bf3 {[%clk 0:01:38]}  Qf5 {[%clk 0:01:18]} 38. Bd5 {[%clk 0:01:54]}  Qd7 {[%clk 0:01:28]} 39. Be6 {[%clk 0:01:07]}  Qc6 {[%clk 0:00:55]}
40. Bc4 {[%clk 0:00:59]}  Qd7 {[%clk 0:00:50]} 41. Bb5 {[%clk 0:28:50]}  Qe7 {[%clk 0:28:11]} 42. Ba6 {[%clk 0:17:34]}  Qd7 {[%clk 0:27:15]}
43. Kg2 {[%clk 0:14:22]}  Qc6+ {[%clk 0:25:57]} 44. f3 {[%clk 0:13:31]}  Qd7 {[%clk 0:25:15]} 45. Bxc8 {[%clk 0:13:34]}  Qxc8 {[%clk 0:25:28]}
46. Qxg7 {[%clk 0:13:53]}  Qd8 {[%clk 0:19:11]} 47. g4 {[%clk 0:12:57]}  hxg4 {[%clk 0:16:36]} 48. Qxg4 {[%clk 0:13:16]}  Qd2+ {[%clk 0:16:51]}
49. Kh3 {[%clk 0:13:42]}  Qd1 {[%clk 0:14:37]} 50. Qf4+ {[%clk 0:12:56]}  Kc8 {[%clk 0:13:10]} 51. h5 {[%clk 0:12:21]}  Qxb3 {[%clk 0:12:41]}
52. h6 {[%clk 0:12:48]}  Qd3 {[%clk 0:12:01]} 53. Qg4+ {[%clk 0:08:13]}  Kd8 {[%clk 0:11:27]} 54. Kg3 {[%clk 0:05:54]}  Qe3 {[%clk 0:06:53]}
55. Qg8+ {[%clk 0:03:16]}  Ke7 {[%clk 0:07:07]} 56. h7 {[%clk 0:03:17]}  Qg1+ {[%clk 0:06:22]} 57. Kf4 {[%clk 0:02:32]}  Qh2+ {[%clk 0:05:07]}
58. Ke3 {[%clk 0:00:31]}  Qe5+ {[%clk 0:05:01]} 59. Kf2 {[%clk 0:00:54]}  Qh2+ {[%clk 0:05:08]} 60. Kf1 {[%clk 0:01:20]}  Qh1+ {[%clk 0:04:58]}
61. Ke2 {[%clk 0:01:45]}  Qh2+ {[%clk 0:05:09]} 62. Kd3 {[%clk 0:01:08]}  Qd6+ {[%clk 0:05:27]} 63. Kc2 {[%clk 0:00:50]}  Qh2+ {[%clk 0:05:04]}
64. Kb1 {[%clk 0:00:33]}  Qh1+ {[%clk 0:05:12]} 65. Kb2 {[%clk 0:00:39]}  Qh2+ {[%clk 0:03:36]} 66. Ka3 {[%clk 0:00:33]}  Qf4 {[%clk 0:01:51]}
67. Qg7+ {[%clk 0:00:33]}  Kd6 {[%clk 0:02:07]} 68. Qf8+ {[%clk 0:00:40]}  Kd7 {[%clk 0:02:10]} 69. Qf7+ {[%clk 0:00:46]}  Kd6 {[%clk 0:02:38]}
70. Qf8+ {[%clk 0:00:38]}  Kd7 {[%clk 0:03:03]} 71. Qg7+ {[%clk 0:00:34]}  Kd6 {[%clk 0:03:02]} 72. Qf8+ {[%clk 0:00:34]} 1/2-1/2

[Event "2026 European Womens Championship"]
[Site "Batumi, GE"]
[Date "2026.06.05"]
[Round "11"]
[White "Mirzoeva, Elmira"]
[Black "Khachatryan, Anna"]
[Result "0-1"]
[Board "30"]
[TimeControl "5400+30"]
[WhiteFideId "4127951"]
[BlackFideId "13310780"]
[WhiteElo "2265"]
[BlackElo "2154"]
[WhiteTitle "WGM"]
[BlackTitle "WFM"]
[WhiteClock "0:31:52"]
[BlackClock "0:30:07"]
[Variant "Standard"]

1. Nf3 {[%clk 1:30:53]}  c5 {[%clk 1:30:46]} 2. b3 {[%clk 1:31:06]}  d5 {[%clk 1:30:30]} 3. e3 {[%clk 1:31:04]}  Nf6 {[%clk 1:30:11]}
4. Bb2 {[%clk 1:31:04]}  g6 {[%clk 1:30:13]} 5. c4 {[%clk 1:30:01]}  Bg7 {[%clk 1:22:04]} 6. cxd5 {[%clk 1:20:16]}  Qxd5 {[%clk 1:20:15]}
7. Nc3 {[%clk 1:20:01]}  Qd8 {[%clk 1:19:13]} 8. d4 {[%clk 1:15:45]}  cxd4 {[%clk 1:11:38]} 9. Nxd4 {[%clk 1:15:34]}  O-O {[%clk 1:12:04]}
10. Be2 {[%clk 1:15:44]}  Bd7 {[%clk 1:04:48]} 11. Bf3 {[%clk 1:14:09]}  Qb6 {[%clk 1:00:48]} 12. O-O {[%clk 1:11:19]}  e5 {[%clk 0:58:52]}
13. Nc2 {[%clk 1:10:47]}  Rd8 {[%clk 0:52:54]} 14. Qe1 {[%clk 0:53:00]}  Na6 {[%clk 0:44:44]} 15. Na3 {[%clk 0:41:56]}  Rac8 {[%clk 0:45:02]}
16. Qe2 {[%clk 0:25:18]}  Nc5 {[%clk 0:37:54]} 17. Nc4 {[%clk 0:25:21]}  Qe6 {[%clk 0:31:56]} 18. e4 {[%clk 0:22:58]}  b5 {[%clk 0:31:47]}
19. Nd2 {[%clk 0:12:21]}  Bc6 {[%clk 0:27:30]} 20. Ba3 {[%clk 0:08:10]}  Nd3 {[%clk 0:25:51]} 21. Nd5 {[%clk 0:07:11]}  Nxd5 {[%clk 0:24:14]}
22. Qxd3 {[%clk 0:06:30]}  Nf4 {[%clk 0:23:57]} 23. Qe3 {[%clk 0:06:13]}  Bh6 {[%clk 0:23:22]} 24. Kh1 {[%clk 0:05:50]}  Rd3 {[%clk 0:22:00]}
25. Qe1 {[%clk 0:06:17]}  Rcd8 {[%clk 0:19:08]} 26. Rd1 {[%clk 0:05:21]}  Nxg2 {[%clk 0:19:29]} 27. Bxg2 {[%clk 0:05:40]}  Bxd2 {[%clk 0:19:13]}
28. Qe2 {[%clk 0:06:09]}  Qd7 {[%clk 0:18:28]} 29. Bc1 {[%clk 0:03:06]}  b4 {[%clk 0:15:08]} 30. Bxd2 {[%clk 0:02:58]}  Rxd2 {[%clk 0:15:34]}
31. Rxd2 {[%clk 0:03:21]}  Qxd2 {[%clk 0:16:03]} 32. Qa6 {[%clk 0:01:01]}  Qc2 {[%clk 0:16:08]} 33. Qa5 {[%clk 0:00:55]}  Rd1 {[%clk 0:12:39]}
34. Qxb4 {[%clk 0:00:58]}  Rxf1+ {[%clk 0:11:19]} 35. Bxf1 {[%clk 0:01:27]}  Qxf2 {[%clk 0:08:24]} 36. Qb8+ {[%clk 0:00:57]}  Kg7 {[%clk 0:08:53]}
37. Qxe5+ {[%clk 0:01:22]}  Kh6 {[%clk 0:07:34]} 38. Bd3 {[%clk 0:00:48]}  Qf3+ {[%clk 0:07:22]} 39. Kg1 {[%clk 0:01:16]}  Qe3+ {[%clk 0:07:46]}
40. Kg2 {[%clk 0:01:20]}  Qd2+ {[%clk 0:07:32]} 41. Kg1 {[%clk 0:01:43]}  Qe3+ {[%clk 0:00:59]} 42. Kg2 {[%clk 0:01:39]}  Qxd3 {[%clk 0:01:19]}
43. Qf4+ {[%clk 0:01:17]}  Kg7 {[%clk 0:01:45]} 44. Qe5+ {[%clk 0:01:34]}  Kh6 {[%clk 0:29:15]} 45. Qf4+ {[%clk 0:31:40]}  Kh5 {[%clk 0:29:45]}
46. Qe5+ {[%clk 0:31:18]}  f5 {[%clk 0:30:06]} 47. Qc7 {[%clk 0:31:08]}  Bxe4+ {[%clk 0:30:01]} 48. Kf2 {[%clk 0:31:34]}  Qd2+ {[%clk 0:29:46]}
49. Kf1 {[%clk 0:31:52]}  Bd3+ {[%clk 0:30:07]} 0-1

[Event "2026 European Womens Championship"]
[Site "Batumi, GE"]
[Date "2026.06.05"]
[Round "11"]
[White "Huseynova, Lala"]
[Black "Radeva, Viktoria"]
[Result "1-0"]
[Board "31"]
[TimeControl "5400+30"]
[WhiteFideId "13431781"]
[BlackFideId "2915405"]
[WhiteElo "2149"]
[BlackElo "2242"]
[WhiteTitle "WFM"]
[BlackTitle "WGM"]
[WhiteClock "0:08:21"]
[BlackClock "0:11:22"]
[Variant "Standard"]

1. e4 {[%clk 1:30:38]}  c5 {[%clk 1:30:51]} 2. Nf3 {[%clk 1:30:58]}  Nc6 {[%clk 1:31:17]} 3. Bb5 {[%clk 1:31:07]}  e6 {[%clk 1:31:40]}
4. O-O {[%clk 1:30:25]}  Nd4 {[%clk 1:31:37]} 5. Nxd4 {[%clk 1:28:29]}  cxd4 {[%clk 1:32:00]} 6. Re1 {[%clk 1:24:58]}  Bc5 {[%clk 1:27:06]}
7. a4 {[%clk 1:14:22]}  a6 {[%clk 1:24:30]} 8. Bf1 {[%clk 1:11:18]}  Ne7 {[%clk 1:24:49]} 9. c3 {[%clk 1:10:37]}  O-O {[%clk 1:24:24]}
10. b4 {[%clk 1:09:13]}  Ba7 {[%clk 1:24:32]} 11. Bb2 {[%clk 1:08:02]}  d5 {[%clk 1:18:38]} 12. Na3 {[%clk 1:01:49]}  Bd7 {[%clk 1:09:48]}
13. b5 {[%clk 0:48:07]}  dxe4 {[%clk 0:59:33]} 14. Rxe4 {[%clk 0:42:59]}  dxc3 {[%clk 0:58:56]} 15. dxc3 {[%clk 0:42:02]}  axb5 {[%clk 0:44:22]}
16. axb5 {[%clk 0:38:40]}  Bc5 {[%clk 0:42:21]} 17. c4 {[%clk 0:33:16]}  f6 {[%clk 0:40:21]} 18. Nc2 {[%clk 0:29:14]}  Rxa1 {[%clk 0:40:18]}
19. Nxa1 {[%clk 0:28:39]}  Qc7 {[%clk 0:35:45]} 20. Nb3 {[%clk 0:27:59]}  Bd6 {[%clk 0:35:21]} 21. b6 {[%clk 0:21:40]}  Qb8 {[%clk 0:33:08]}
22. Ba3 {[%clk 0:19:06]}  Bxh2+ {[%clk 0:25:28]} 23. Kh1 {[%clk 0:19:32]}  Bc6 {[%clk 0:24:22]} 24. Rh4 {[%clk 0:17:59]}  Rd8 {[%clk 0:18:36]}
25. Qe2 {[%clk 0:14:24]}  Bd6 {[%clk 0:17:55]} 26. Qxe6+ {[%clk 0:14:39]}  Kh8 {[%clk 0:18:04]} 27. Bd3 {[%clk 0:13:54]}  f5 {[%clk 0:14:32]}
28. Bxf5 {[%clk 0:12:35]}  Nxf5 {[%clk 0:14:24]} 29. Qxf5 {[%clk 0:12:58]}  h6 {[%clk 0:14:34]} 30. Bb2 {[%clk 0:11:32]}  Rf8 {[%clk 0:09:52]}
31. Rxh6+ {[%clk 0:11:21]}  Kg8 {[%clk 0:10:16]} 32. Qh7+ {[%clk 0:11:28]}  Kf7 {[%clk 0:10:36]} 33. Qxg7+ {[%clk 0:08:15]}  Ke8 {[%clk 0:11:02]}
34. Qg6+ {[%clk 0:08:01]}  Kd7 {[%clk 0:11:22]} 35. Qe6+ {[%clk 0:08:21]} 1-0

[Event "2026 European Womens Championship"]
[Site "Batumi, GE"]
[Date "2026.06.05"]
[Round "11"]
[White "Purtseladze, Maka"]
[Black "Mgeladze, Kesaria"]
[Result "1/2-1/2"]
[Board "32"]
[TimeControl "5400+30"]
[WhiteFideId "13602659"]
[BlackFideId "13621130"]
[WhiteElo "2237"]
[BlackElo "2147"]
[WhiteTitle "IM"]
[BlackTitle "WIM"]
[WhiteClock "0:08:39"]
[BlackClock "0:07:57"]
[Variant "Standard"]

1. d4 {[%clk 1:30:57]}  Nf6 {[%clk 1:30:55]} 2. Nf3 {[%clk 1:31:22]}  e6 {[%clk 1:31:20]} 3. e3 {[%clk 1:28:11]}  d5 {[%clk 1:27:11]}
4. Nbd2 {[%clk 1:25:05]}  c5 {[%clk 1:26:40]} 5. b3 {[%clk 1:25:24]}  Nc6 {[%clk 1:24:53]} 6. Bb2 {[%clk 1:25:50]}  cxd4 {[%clk 1:23:00]}
7. exd4 {[%clk 1:26:07]}  Bd6 {[%clk 1:21:36]} 8. a3 {[%clk 1:25:37]}  O-O {[%clk 1:20:04]} 9. Bd3 {[%clk 1:25:07]}  Nh5 {[%clk 1:09:28]}
10. g3 {[%clk 1:19:36]}  f5 {[%clk 1:09:18]} 11. Ne5 {[%clk 0:49:50]}  Nf6 {[%clk 1:08:21]} 12. c4 {[%clk 0:44:14]}  dxc4 {[%clk 0:43:49]}
13. Ndxc4 {[%clk 0:43:55]}  Bc7 {[%clk 0:43:27]} 14. Be2 {[%clk 0:43:43]}  Ne7 {[%clk 0:43:24]} 15. Bf3 {[%clk 0:41:50]}  Ned5 {[%clk 0:42:53]}
16. O-O {[%clk 0:42:07]}  b5 {[%clk 0:41:11]} 17. Ne3 {[%clk 0:35:13]}  Bb7 {[%clk 0:39:59]} 18. Rc1 {[%clk 0:35:04]}  Nxe3 {[%clk 0:32:43]}
19. fxe3 {[%clk 0:35:21]}  Bxf3 {[%clk 0:31:28]} 20. Qxf3 {[%clk 0:32:07]}  Bxe5 {[%clk 0:29:32]} 21. dxe5 {[%clk 0:32:33]}  Ne4 {[%clk 0:29:45]}
22. Rfd1 {[%clk 0:32:53]}  Qe7 {[%clk 0:28:34]} 23. Qe2 {[%clk 0:30:35]}  a6 {[%clk 0:27:45]} 24. Rc6 {[%clk 0:30:38]}  Rfd8 {[%clk 0:22:39]}
25. b4 {[%clk 0:21:31]}  Rxd1+ {[%clk 0:21:55]} 26. Qxd1 {[%clk 0:21:57]}  Qb7 {[%clk 0:16:21]} 27. Qc2 {[%clk 0:18:02]}  h5 {[%clk 0:16:00]}
28. Bd4 {[%clk 0:17:23]}  Kh7 {[%clk 0:15:09]} 29. Rxe6 {[%clk 0:08:44]}  Rc8 {[%clk 0:10:43]} 30. Re7 {[%clk 0:08:41]}  Rxc2 {[%clk 0:07:14]}
31. Rxb7 {[%clk 0:09:07]}  Ng5 {[%clk 0:07:14]} 32. h4 {[%clk 0:07:32]}  Nf3+ {[%clk 0:07:22]} 33. Kf1 {[%clk 0:07:59]}  Rd2 {[%clk 0:07:14]}
34. e6 {[%clk 0:07:46]}  Nh2+ {[%clk 0:07:16]} 35. Ke1 {[%clk 0:08:11]}  Nf3+ {[%clk 0:07:41]} 36. Kf1 {[%clk 0:08:39]}  Nh2+ {[%clk 0:07:57]} 1/2-1/2

[Event "2026 European Womens Championship"]
[Site "Batumi, GE"]
[Date "2026.06.05"]
[Round "11"]
[White "Dwilewicz, Katarzyna"]
[Black "Charkhalashvili, Inga"]
[Result "1/2-1/2"]
[Board "33"]
[TimeControl "5400+30"]
[WhiteFideId "1148486"]
[BlackFideId "13601431"]
[WhiteElo "2131"]
[BlackElo "2235"]
[WhiteTitle "WIM"]
[BlackTitle "WGM"]
[WhiteClock "0:07:32"]
[BlackClock "0:29:37"]
[Variant "Standard"]

1. e4 {[%clk 1:30:56]}  c6 {[%clk 1:30:57]} 2. d4 {[%clk 1:31:14]}  d5 {[%clk 1:31:23]} 3. e5 {[%clk 1:31:35]}  Bf5 {[%clk 1:31:48]}
4. Ne2 {[%clk 1:31:52]}  e6 {[%clk 1:32:08]} 5. Ng3 {[%clk 1:32:04]}  Bg6 {[%clk 1:32:33]} 6. h4 {[%clk 1:32:22]}  h5 {[%clk 1:32:01]}
7. c4 {[%clk 1:32:35]}  Be7 {[%clk 1:30:33]} 8. Nc3 {[%clk 1:30:02]}  Nd7 {[%clk 1:23:34]} 9. cxd5 {[%clk 1:16:55]}  cxd5 {[%clk 1:23:56]}
10. Be3 {[%clk 1:13:35]}  a6 {[%clk 1:19:21]} 11. Be2 {[%clk 1:13:24]}  Bxh4 {[%clk 1:18:13]} 12. Nxh5 {[%clk 1:04:19]}  Bxh5 {[%clk 1:10:11]}
13. Bxh5 {[%clk 1:04:37]}  Nh6 {[%clk 1:07:24]} 14. Bxh6 {[%clk 0:36:54]}  Rxh6 {[%clk 1:07:11]} 15. Qg4 {[%clk 0:35:11]}  Bxf2+ {[%clk 0:57:56]}
16. Kxf2 {[%clk 0:35:20]}  g6 {[%clk 0:58:20]} 17. Bxg6 {[%clk 0:25:40]}  Rxg6 {[%clk 0:58:41]} 18. Rh8+ {[%clk 0:24:06]}  Nf8 {[%clk 0:59:06]}
19. Qf4 {[%clk 0:23:17]}  Qb6 {[%clk 0:56:16]} 20. Rah1 {[%clk 0:11:10]}  Qxb2+ {[%clk 0:52:50]} 21. Ne2 {[%clk 0:11:33]}  Rc8 {[%clk 0:27:29]}
22. Rxf8+ {[%clk 0:08:53]}  Kxf8 {[%clk 0:27:54]} 23. Rh8+ {[%clk 0:09:10]}  Rg8 {[%clk 0:28:03]} 24. Qh6+ {[%clk 0:08:35]}  Ke7 {[%clk 0:28:28]}
25. Qf6+ {[%clk 0:08:34]}  Kf8 {[%clk 0:28:51]} 26. Qh6+ {[%clk 0:07:37]}  Ke7 {[%clk 0:29:16]} 27. Qf6+ {[%clk 0:07:44]}  Kf8 {[%clk 0:29:40]}
28. Qh6+ {[%clk 0:07:32]}  Ke7 {[%clk 0:29:37]} 1/2-1/2

[Event "2026 European Womens Championship"]
[Site "Batumi, GE"]
[Date "2026.06.05"]
[Round "11"]
[White "Ivekovic, Tihana"]
[Black "Orian, Noga"]
[Result "0-1"]
[Board "34"]
[TimeControl "5400+30"]
[WhiteFideId "14517825"]
[BlackFideId "2836475"]
[WhiteElo "2119"]
[BlackElo "2231"]
[WhiteTitle "WFM"]
[BlackTitle "WIM"]
[WhiteClock "0:31:41"]
[BlackClock "0:13:38"]
[Variant "Standard"]

1. e4 {[%clk 1:30:57]}  c5 {[%clk 1:30:54]} 2. Nf3 {[%clk 1:31:23]}  d6 {[%clk 1:31:20]} 3. d4 {[%clk 1:31:48]}  cxd4 {[%clk 1:31:45]}
4. Nxd4 {[%clk 1:32:13]}  Nf6 {[%clk 1:32:08]} 5. Nc3 {[%clk 1:32:37]}  a6 {[%clk 1:32:33]} 6. a4 {[%clk 1:33:03]}  e5 {[%clk 1:32:57]}
7. Nf3 {[%clk 1:33:28]}  h6 {[%clk 1:33:21]} 8. Nd2 {[%clk 1:33:27]}  d5 {[%clk 1:33:17]} 9. exd5 {[%clk 1:33:42]}  Nxd5 {[%clk 1:33:02]}
10. Nxd5 {[%clk 1:33:50]}  Qxd5 {[%clk 1:33:18]} 11. Nc4 {[%clk 1:34:03]}  Qxd1+ {[%clk 1:32:09]} 12. Kxd1 {[%clk 1:33:49]}  Nc6 {[%clk 1:32:18]}
13. Be3 {[%clk 1:31:55]}  Bf5 {[%clk 1:27:57]} 14. Bd3 {[%clk 1:28:10]}  Rd8 {[%clk 1:24:36]} 15. Bb6 {[%clk 1:19:52]}  Bxd3 {[%clk 1:24:37]}
16. cxd3 {[%clk 1:20:17]}  Rxd3+ {[%clk 1:24:16]} 17. Ke2 {[%clk 1:20:41]}  Rd7 {[%clk 1:23:46]} 18. Rad1 {[%clk 1:19:58]}  Be7 {[%clk 1:21:24]}
19. Kf3 {[%clk 1:16:33]}  g6 {[%clk 1:14:14]} 20. g3 {[%clk 1:06:33]}  f6 {[%clk 1:09:34]} 21. Be3 {[%clk 1:01:34]}  h5 {[%clk 1:05:33]}
22. Nb6 {[%clk 0:55:51]}  Rd8 {[%clk 0:58:10]} 23. h3 {[%clk 0:51:56]}  Kf7 {[%clk 0:56:47]} 24. Nd5 {[%clk 0:46:17]}  Rhe8 {[%clk 0:44:29]}
25. g4 {[%clk 0:40:21]}  Nd4+ {[%clk 0:41:00]} 26. Bxd4 {[%clk 0:40:45]}  Rxd5 {[%clk 0:41:26]} 27. Bb6 {[%clk 0:40:57]}  hxg4+ {[%clk 0:41:19]}
28. hxg4 {[%clk 0:41:20]}  Rxd1 {[%clk 0:39:35]} 29. Rxd1 {[%clk 0:41:45]}  Ke6 {[%clk 0:39:56]} 30. Rc1 {[%clk 0:41:54]}  Bd6 {[%clk 0:39:16]}
31. Rh1 {[%clk 0:34:59]}  Rc8 {[%clk 0:36:51]} 32. Rh7 {[%clk 0:32:50]}  Be7 {[%clk 0:36:42]} 33. a5 {[%clk 0:30:49]}  Rc2 {[%clk 0:28:39]}
34. b4 {[%clk 0:31:12]}  Rb2 {[%clk 0:27:03]} 35. Rg7 {[%clk 0:31:25]}  Bxb4 {[%clk 0:13:40]} 36. Rxb7 {[%clk 0:31:41]}  Bxa5 {[%clk 0:13:38]} 0-1